fUSD/lending_fUSD_20240907
["ID","MTS","AMOUNT","RATE_DAILY","PERIOD"]
[337514264,1725727870358,-2537.07,0.00014998,2]
[337514265,1725727870368,-326.61850794,0.00014998,2]
[337514266,1725727870379,-1215.30012531,0.00014998,2]
[337514267,1725727870391,-20.55136675,0.00014998,2]
[337514268,1725727870401,-541.04863325,0.00014998,2]
[337514270,1725727963277,50000.0,0.00031282,30]
[337514271,1725727967523,50000.0,0.00031282,31]
[337514272,1725727971699,50000.0,0.00031282,32]
[337514273,1725727975585,50000.0,0.00031282,33]
[337514274,1725727980554,50000.0,0.00031282,34]
[337514275,1725727985829,50000.0,0.00031282,35]
[337514276,1725727989477,50000.0,0.00031282,36]
[337514277,1725727992926,50000.0,0.00031282,37]
[337514278,1725727996621,50000.0,0.00031282,38]
[337514279,1725728003749,14067.99641757,0.00031282,39]
[337514280,1725728044792,413.38,0.00027,120]
[337514281,1725728376810,530.9,0.00011601,2]
[337514282,1725728399145,150.0,0.00010959,2]
[337514283,1725728399170,150.0,0.00010959,2]
[337514284,1725728399191,83.69,0.00010959,2]
[337514295,1725728681108,150.0,0.00011948,2]
[337514296,1725728681128,83.39425541,0.00011948,2]
[337514305,1725728837430,750.0,0.00011,2]
[337514308,1725728913583,150.0,0.00010733,2]
[337514309,1725728913604,150.0,0.00010733,2]
[337514310,1725728913625,150.0,0.00010733,2]
[337514311,1725728913650,236.14,0.00010733,2]
[337514312,1725728924096,150.0,0.00010959,2]
[337514313,1725728924118,31.5,0.00010959,2]
[337514347,1725729032131,-1617.52825,0.00012238,2]
[337514348,1725729032142,-250.0,0.000123,2]
[337514349,1725729032152,-3971.46440383,0.00012542,2]
[337514350,1725729032163,-1504.63,0.0001263,2]
[337514351,1725729032172,-155.19,0.00012631,2]
[337514352,1725729032182,-9912.1,0.00012642,2]
[337514353,1725729032192,-1028.82,0.00012642,2]
[337514354,1725729032202,-166.32,0.00012642,2]
[337514355,1725729032212,-1453.2,0.00012654,2]
[337514356,1725729032221,-2000.0,0.00012681,2]
[337514357,1725729032231,-250.0,0.00012687,2]
[337514358,1725729032241,-887.19,0.00012806,2]
[337514359,1725729032250,-1359.12,0.00012853,2]
[337514360,1725729032260,-250.0,0.00012945,2]
[337514361,1725729032270,-686.14,0.00012997,2]
[337514362,1725729032279,-800.0,0.00013,2]
[337514363,1725729032446,-499.99,0.00013,2]
[337514364,1725729032457,-500.0,0.00013014,2]
[337514365,1725729032467,-180.0,0.00013057,2]
[337514366,1725729032476,-250.0,0.00013082,2]
[337514367,1725729032488,-200.0,0.00013082,2]
[337514368,1725729032497,-299.99,0.00013105,2]
[337514370,1725729032507,-979.34524704,0.00013119,2]
[337514372,1725729032519,-22920.65475296,0.00013119,2]
[337514374,1725729032528,-150.43,0.0001347,2]
[337514376,1725729032537,-445.92,0.0001347,2]
[337514377,1725729032546,-150.43,0.00013475,2]
[337514379,1725729032555,-150.43,0.0001348,2]
[337514380,1725729032564,-150.43,0.00013484,2]
[337514381,1725729032573,-150.0,0.00013487,2]
[337514382,1725729032582,-741.46321172,0.00013488,2]
[337514383,1725729032591,-265.34310616,0.00013488,2]
[337514384,1725729032601,-150.0,0.00013488,2]
[337514385,1725729032610,-150.0,0.00013488,2]
[337514386,1725729032619,-352.10384507,0.00013488,2]
[337514387,1725729032628,-150.0,0.00013488,2]
[337514388,1725729032638,-150.0,0.00013488,2]
[337514389,1725729032647,-150.0,0.00013488,2]
[337514390,1725729032658,-150.0,0.00013488,2]
[337514391,1725729032667,-150.0,0.00013488,2]
[337514392,1725729032677,-150.0,0.00013488,2]
[337514393,1725729032686,-150.0,0.00013488,2]
[337514394,1725729032695,-150.0,0.00013488,2]
[337514395,1725729032705,-150.0,0.00013488,2]
[337514396,1725729032714,-150.43,0.00013489,2]
[337514397,1725729032723,-150.43,0.00013494,2]
[337514398,1725729032733,-150.43,0.00013499,2]
[337514399,1725729032742,-1000.0,0.00013502,2]
[337514400,1725729032751,-741.46321172,0.00013503,2]
[337514401,1725729032760,-265.34310616,0.00013503,2]
[337514402,1725729032770,-352.10384507,0.00013503,2]
[337514403,1725729032779,-150.43,0.00013504,2]
[337514404,1725729032788,-150.43,0.00013509,2]
[337514405,1725729032798,-150.0,0.00013513,2]
[337514406,1725729032807,-150.43,0.00013513,2]
[337514407,1725729032816,-741.46321172,0.00013518,2]
[337514408,1725729032825,-265.34310616,0.00013518,2]
[337514409,1725729032834,-209.48093009,0.00013518,2]
[337514410,1725729032846,-142.62291498,0.00013518,2]
[337514411,1725729032855,-150.43,0.00013518,2]
[337514412,1725729032864,-150.43,0.00013523,2]
[337514413,1725729032873,-150.43,0.00013528,2]
[337514414,1725729032883,-150.43,0.00013533,2]
[337514415,1725729032892,-436.91921636,0.00013533,2]
[337514416,1725729032903,-304.54399536,0.00013533,2]
[337514417,1725729032912,-265.34310616,0.00013533,2]
[337514418,1725729032921,-352.10384507,0.00013533,2]
[337514419,1725729032930,-150.43,0.00013538,2]
[337514420,1725729032939,-150.0,0.00013538,2]
[337514421,1725729032949,-741.46321172,0.00013548,2]
[337514422,1725729032959,-265.34310616,0.00013548,2]
[337514423,1725729032968,-352.10384507,0.00013548,2]
[337514424,1725729032979,-150.0,0.00013563,2]
[337514425,1725729032989,-741.46321172,0.00013563,2]
[337514426,1725729032999,-265.34310616,0.00013563,2]
[337514427,1725729033008,-352.10384507,0.00013563,2]
[337514428,1725729033018,-150.0,0.00013576,2]
[337514429,1725729033028,-459.75872751,0.00013578,2]
[337514430,1725729033039,-281.70448421,0.00013578,2]
[337514431,1725729033049,-265.34310616,0.00013578,2]
[337514432,1725729033058,-52.95240963,0.00013578,2]
[337514433,1725729033070,-299.15143544,0.00013578,2]
[337514434,1725729033079,-150.0,0.00013588,2]
[337514435,1725729033089,-741.46321172,0.00013594,2]
[337514436,1725729033098,-265.34310616,0.00013594,2]
[337514437,1725729033108,-352.10384507,0.00013594,2]
[337514438,1725729033117,-741.46321172,0.00013609,2]
[337514439,1725729033127,-265.34310616,0.00013609,2]
[337514440,1725729033136,-352.10384507,0.00013609,2]
[337514441,1725729033146,-150.0,0.00013613,2]
[337514442,1725729033155,-741.46321172,0.00013624,2]
[337514443,1725729033165,-265.34310616,0.00013624,2]
[337514444,1725729033174,-352.10384507,0.00013624,2]
[337514445,1725729033183,-150.0,0.00013638,2]
[337514446,1725729033192,-150.0,0.00013638,2]
[337514447,1725729033202,-524.88934296,0.00013639,2]
[337514448,1725729033218,-216.57386876,0.00013639,2]
[337514449,1725729033227,-265.34310616,0.00013639,2]
[337514450,1725729033237,-352.10384507,0.00013639,2]
[337514451,1725729033246,-741.46321172,0.00013654,2]
[337514452,1725729033256,-265.34310616,0.00013654,2]
[337514453,1725729033266,-352.10384507,0.00013654,2]
[337514454,1725729033275,-150.0,0.00013663,2]
[337514455,1725729033286,-150.0,0.00013664,2]
[337514456,1725729033297,-741.46321172,0.00013669,2]
[337514457,1725729033306,-265.34310616,0.00013669,2]
[337514458,1725729033315,-352.10384507,0.00013669,2]
[337514459,1725729033326,-741.46321172,0.00013684,2]
[337514460,1725729033335,-265.34310616,0.00013684,2]
[337514461,1725729033345,-352.10384507,0.00013684,2]
[337514462,1725729033354,-856.0,0.00013685,2]
[337514463,1725729033364,-150.0,0.00013687,2]
[337514464,1725729033375,-164.91,0.00013699,2]
[337514465,1725729033384,-150.0,0.00013699,2]
[337514466,1725729033394,-2751.0,0.00013699,2]
[337514467,1725729033403,-200.0,0.00013699,2]
[337514468,1725729033412,-741.46321172,0.000137,2]
[337514469,1725729033422,-265.34310616,0.000137,2]
[337514470,1725729033431,-352.10384507,0.000137,2]
[337514471,1725729033440,-150.0,0.00013712,2]
[337514472,1725729033450,-741.46321172,0.00013715,2]
[337514473,1725729033459,-265.34310616,0.00013715,2]
[337514474,1725729033468,-352.10384507,0.00013715,2]
[337514475,1725729033477,-741.46321172,0.0001373,2]
[337514476,1725729033488,-265.34310616,0.0001373,2]
[337514477,1725729033497,-352.10384507,0.0001373,2]
[337514478,1725729033506,-150.0,0.00013737,2]
[337514479,1725729033516,-150.0,0.00013737,2]
[337514480,1725729033524,-741.46321172,0.00013745,2]
[337514481,1725729033534,-265.34310616,0.00013745,2]
[337514482,1725729033543,-352.10384507,0.00013745,2]
[337514483,1725729033553,-150.0,0.00013752,2]
[337514484,1725729033562,-741.46321172,0.0001376,2]
[337514485,1725729033571,-265.34310616,0.0001376,2]
[337514486,1725729033580,-352.10384507,0.0001376,2]
[337514487,1725729033590,-178.96,0.00013762,2]
[337514488,1725729033599,-150.0,0.00013762,2]
[337514489,1725729033608,-741.46321172,0.00013775,2]
[337514490,1725729033618,-265.34310616,0.00013775,2]
[337514491,1725729033627,-352.10384507,0.00013775,2]
[337514492,1725729033636,-150.0,0.00013787,2]
[337514493,1725729033645,-150.0,0.00013787,2]
[337514494,1725729033654,-150.0,0.00013787,2]
[337514495,1725729033663,-150.0,0.00013787,2]
[337514496,1725729033673,-741.46321172,0.0001379,2]
[337514497,1725729033682,-265.34310616,0.0001379,2]
[337514498,1725729033691,-352.10384507,0.0001379,2]
[337514499,1725729033701,-741.46321172,0.00013806,2]
[337514500,1725729033710,-265.34310616,0.00013806,2]
[337514501,1725729033719,-352.10384507,0.00013806,2]
[337514502,1725729033728,-150.0,0.00013812,2]
[337514503,1725729033738,-741.46321172,0.00013821,2]
[337514504,1725729033756,-265.34310616,0.00013821,2]
[337514505,1725729033766,-352.10384507,0.00013821,2]
[337514506,1725729033775,-741.46321172,0.00013836,2]
[337514507,1725729033784,-265.34310616,0.00013836,2]
[337514508,1725729033794,-352.10384507,0.00013836,2]
[337514509,1725729033803,-150.0,0.00013837,2]
[337514510,1725729033812,-150.0,0.0001384,2]
[337514511,1725729033822,-741.46321172,0.00013851,2]
[337514512,1725729033831,-265.34310616,0.00013851,2]
[337514513,1725729033840,-352.10384507,0.00013851,2]
[337514514,1725729033850,-150.0,0.00013862,2]
[337514515,1725729033859,-150.0,0.00013862,2]
[337514516,1725729033868,-150.0,0.00013862,2]
[337514517,1725729033877,-741.46321172,0.00013866,2]
[337514518,1725729033887,-265.34310616,0.00013866,2]
[337514519,1725729033896,-352.10384507,0.00013866,2]
[337514520,1725729033905,-741.46321172,0.00013881,2]
[337514521,1725729033914,-265.34310616,0.00013881,2]
[337514522,1725729033924,-352.10384507,0.00013881,2]
[337514523,1725729033933,-150.0,0.00013887,2]
[337514524,1725729033942,-741.46321172,0.00013896,2]
[337514525,1725729033952,-265.34310616,0.00013896,2]
[337514526,1725729033961,-352.10384507,0.00013896,2]
[337514527,1725729033971,-300.0,0.000139,5]
[337514528,1725729033980,-207.26,0.00013904,2]
[337514529,1725729033991,-741.46321172,0.00013912,2]
[337514530,1725729034001,-265.34310616,0.00013912,2]
[337514531,1725729034010,-352.10384507,0.00013912,2]
[337514532,1725729034020,-150.0,0.00013912,2]
[337514533,1725729034029,-741.46321172,0.00013927,2]
[337514534,1725729034039,-265.34310616,0.00013927,2]
[337514535,1725729034048,-352.10384507,0.00013927,2]
[337514536,1725729034057,-150.0,0.00013928,2]
[337514537,1725729034067,-150.0,0.00013937,2]
[337514538,1725729034076,-150.0,0.00013937,2]
[337514539,1725729034085,-741.46321172,0.00013942,2]
[337514540,1725729034095,-265.34310616,0.00013942,2]
[337514541,1725729034104,-352.10384507,0.00013942,2]
[337514542,1725729034113,-500.0,0.0001395,2]
[337514543,1725729034123,-500.0,0.0001395,2]
[337514544,1725729034132,-741.46321172,0.00013957,2]
[337514545,1725729034142,-265.34310616,0.00013957,2]
[337514546,1725729034151,-352.10384507,0.00013957,2]
[337514547,1725729034160,-150.0,0.00013962,2]
[337514548,1725729034170,-741.46321172,0.00013972,2]
[337514549,1725729034179,-265.34310616,0.00013972,2]
[337514550,1725729034188,-352.10384507,0.00013972,2]
[337514551,1725729034198,-741.46321172,0.00013987,2]
[337514552,1725729034207,-265.34310616,0.00013987,2]
[337514553,1725729034216,-352.10384507,0.00013987,2]
[337514554,1725729034226,-150.0,0.00013987,2]
[337514555,1725729034236,-150.0,0.00013987,2]
[337514556,1725729034246,-600.0,0.00014,5]
[337514557,1725729034255,-741.46321172,0.00014002,2]
[337514558,1725729034264,-265.34310616,0.00014002,2]
[337514559,1725729034273,-352.10384507,0.00014002,2]
[337514560,1725729034284,-150.0,0.00014012,2]
[337514561,1725729034295,-150.0,0.00014017,2]
[337514562,1725729034304,-741.46321172,0.00014017,2]
[337514563,1725729034314,-265.34310616,0.00014017,2]
[337514564,1725729034323,-352.10384507,0.00014017,2]
[337514565,1725729034333,-741.46321172,0.00014033,2]
[337514566,1725729034342,-265.34310616,0.00014033,2]
[337514567,1725729034352,-352.10384507,0.00014033,2]
[337514568,1725729034363,-150.0,0.00014037,2]
[337514569,1725729034372,-741.46321172,0.00014048,2]
[337514570,1725729034382,-265.34310616,0.00014048,2]
[337514571,1725729034392,-352.10384507,0.00014048,2]
[337514572,1725729034401,-150.0,0.00014059,2]
[337514573,1725729034411,-150.0,0.00014062,2]
[337514574,1725729034421,-741.46321172,0.00014063,2]
[337514575,1725729034430,-265.34310616,0.00014063,2]
[337514576,1725729034439,-352.10384507,0.00014063,2]
[337514577,1725729034450,-741.46321172,0.00014078,2]
[337514578,1725729034459,-265.34310616,0.00014078,2]
[337514579,1725729034470,-352.10384507,0.00014078,2]
[337514580,1725729034480,-150.0,0.00014087,2]
[337514581,1725729034493,-150.0,0.00014087,2]
[337514582,1725729034503,-150.0,0.00014087,2]
[337514583,1725729034512,-150.0,0.00014087,2]
[337514584,1725729034522,-741.46321172,0.00014093,2]
[337514585,1725729034531,-265.34310616,0.00014093,2]
[337514586,1725729034542,-352.10384507,0.00014093,2]
[337514587,1725729034551,-1000.0,0.000141,5]
[337514588,1725729034561,-150.0,0.00014105,2]
[337514589,1725729034571,-741.46321172,0.00014108,2]
[337514590,1725729034581,-265.34310616,0.00014108,2]
[337514591,1725729034590,-352.10384507,0.00014108,2]
[337514592,1725729034600,-150.0,0.00014112,2]
[337514593,1725729034609,-741.46321172,0.00014123,2]
[337514594,1725729034618,-265.34310616,0.00014123,2]
[337514595,1725729034628,-352.10384507,0.00014123,2]
[337514596,1725729034637,-150.0,0.00014137,2]
[337514597,1725729034646,-741.46321172,0.00014139,2]
[337514598,1725729034656,-265.34310616,0.00014139,2]
[337514599,1725729034666,-352.10384507,0.00014139,2]
[337514600,1725729034675,-741.46321172,0.00014154,2]
[337514601,1725729034685,-265.34310616,0.00014154,2]
[337514602,1725729034694,-352.10384507,0.00014154,2]
[337514603,1725729034704,-150.0,0.00014162,2]
[337514604,1725729034714,-741.46321172,0.00014169,2]
[337514605,1725729034723,-265.34310616,0.00014169,2]
[337514606,1725729034733,-352.10384507,0.00014169,2]
[337514607,1725729034745,-741.46321172,0.00014184,2]
[337514608,1725729034873,-265.34310616,0.00014184,2]
[337514609,1725729034884,-352.10384507,0.00014184,2]
[337514610,1725729034893,-150.0,0.00014187,2]
[337514611,1725729034902,-150.0,0.00014193,2]
[337514612,1725729034912,-741.46321172,0.00014199,2]
[337514613,1725729034921,-265.34310616,0.00014199,2]
[337514614,1725729034931,-352.10384507,0.00014199,2]
[337514615,1725729034940,-1300.0,0.000142,5]
[337514616,1725729034950,-150.0,0.00014212,2]
[337514617,1725729034959,-741.46321172,0.00014214,2]
[337514618,1725729034968,-265.34310616,0.00014214,2]
[337514619,1725729034977,-352.10384507,0.00014214,2]
[337514620,1725729034987,-741.46321172,0.00014229,2]
[337514621,1725729034997,-265.34310616,0.00014229,2]
[337514622,1725729035006,-352.10384507,0.00014229,2]
[337514623,1725729035015,-173.78877838,0.0001423,2]
[337514624,1725729035024,-150.0,0.00014237,2]
[337514625,1725729035033,-150.0,0.00014237,2]
[337514626,1725729035043,-150.0,0.00014237,2]
[337514627,1725729035053,-150.0,0.00014237,2]
[337514628,1725729035062,-150.0,0.00014237,2]
[337514629,1725729035071,-741.46321172,0.00014245,2]
[337514630,1725729035081,-265.34310616,0.00014245,2]
[337514631,1725729035089,-352.10384507,0.00014245,2]
[337514632,1725729035098,-741.46321172,0.0001426,2]
[337514633,1725729035108,-265.34310616,0.0001426,2]
[337514634,1725729035117,-352.10384507,0.0001426,2]
[337514635,1725729035126,-150.0,0.00014262,2]
[337514636,1725729035136,-741.46321172,0.00014275,2]
[337514637,1725729035145,-265.34310616,0.00014275,2]
[337514638,1725729035154,-352.10384507,0.00014275,2]
[337514639,1725729035164,-150.0,0.00014281,2]
[337514640,1725729035173,-150.0,0.00014287,2]
[337514641,1725729035182,-741.46321172,0.0001429,2]
[337514642,1725729035192,-265.34310616,0.0001429,2]
[337514643,1725729035201,-352.10384507,0.0001429,2]
[337514644,1725729035211,-150.0,0.000143,2]
[337514645,1725729035220,-150.0,0.000143,2]
[337514646,1725729035230,-1700.0,0.000143,5]
[337514647,1725729035242,-741.46321172,0.00014305,2]
[337514648,1725729035257,-265.34310616,0.00014305,2]
[337514649,1725729035266,-352.10384507,0.00014305,2]
[337514650,1725729035277,-150.0,0.00014312,2]
[337514651,1725729035287,-741.46321172,0.0001432,2]
[337514652,1725729035300,-265.34310616,0.0001432,2]
[337514653,1725729035309,-352.10384507,0.0001432,2]
[337514654,1725729035319,-741.46321172,0.00014335,2]
[337514655,1725729035328,-265.34310616,0.00014335,2]
[337514656,1725729035338,-352.10384507,0.00014335,2]
[337514657,1725729035349,-150.0,0.00014337,2]
[337514658,1725729035358,-741.46321172,0.00014351,2]
[337514659,1725729035368,-265.34310616,0.00014351,2]
[337514660,1725729035378,-352.10384507,0.00014351,2]
[337514661,1725729035388,-150.0,0.00014362,2]
[337514662,1725729035397,-741.46321172,0.00014366,2]
[337514663,1725729035407,-265.34310616,0.00014366,2]
[337514664,1725729035416,-352.10384507,0.00014366,2]
[337514665,1725729035425,-150.0,0.00014369,2]
[337514666,1725729035435,-741.46321172,0.00014381,2]
[337514667,1725729035444,-265.34310616,0.00014381,2]
[337514668,1725729035453,-352.10384507,0.00014381,2]
[337514669,1725729035464,-150.0,0.00014387,2]
[337514670,1725729035473,-150.0,0.00014387,2]
[337514671,1725729035483,-150.0,0.00014387,2]
[337514672,1725729035496,-150.0,0.00014387,2]
[337514673,1725729035504,-741.46321172,0.00014396,2]
[337514674,1725729035513,-265.34310616,0.00014396,2]
[337514675,1725729035522,-352.10384507,0.00014396,2]
[337514676,1725729035531,-300.0,0.000144,5]
[337514677,1725729035540,-741.46321172,0.00014411,2]
[337514678,1725729035549,-265.34310616,0.00014411,2]
[337514679,1725729035559,-352.10384507,0.00014411,2]
[337514680,1725729035569,-150.0,0.00014412,2]
[337514681,1725729035578,-150.0,0.0001442,2]
[337514682,1725729035588,-741.46321172,0.00014426,2]
[337514683,1725729035598,-265.34310616,0.00014426,2]
[337514684,1725729035607,-352.10384507,0.00014426,2]
[337514685,1725729035617,-150.0,0.00014437,2]
[337514686,1725729035626,-741.46321172,0.00014441,2]
[337514687,1725729035635,-265.34310616,0.00014441,2]
[337514688,1725729035645,-352.10384507,0.00014441,2]
[337514689,1725729035654,-15221.71530692,0.00014453,2]
[337514690,1725729035663,-741.46321172,0.00014456,2]
[337514691,1725729035673,-265.34310616,0.00014456,2]
[337514692,1725729035682,-352.10384507,0.00014456,2]
[337514693,1725729035691,-150.0,0.00014457,2]
[337514694,1725729035701,-150.0,0.00014462,2]
[337514695,1725729035710,-741.46321172,0.00014472,2]
[337514696,1725729035720,-265.34310616,0.00014472,2]
[337514697,1725729035729,-352.10384507,0.00014472,2]
[337514698,1725729035741,-741.46321172,0.00014487,2]
[337514699,1725729035750,-265.34310616,0.00014487,2]
[337514700,1725729035759,-352.10384507,0.00014487,2]
[337514701,1725729035769,-150.0,0.00014487,2]
[337514702,1725729035779,-150.0,0.00014487,2]
[337514703,1725729035790,-157.3,0.00014495,2]
[337514704,1725729035800,-300.0,0.000145,5]
[337514705,1725729035810,-741.46321172,0.00014502,2]
[337514706,1725729035819,-265.34310616,0.00014502,2]
[337514707,1725729035829,-352.10384507,0.00014502,2]
[337514708,1725729035838,-15221.71530684,0.00014503,2]
[337514709,1725729035847,-150.0,0.00014512,2]
[337514710,1725729035856,-741.46321172,0.00014517,2]
[337514711,1725729035866,-265.34310616,0.00014517,2]
[337514712,1725729035876,-352.10384507,0.00014517,2]
[337514713,1725729035885,-741.46321172,0.00014532,2]
[337514714,1725729035894,-265.34310616,0.00014532,2]
[337514715,1725729035902,-352.10384507,0.00014532,2]
[337514716,1725729035911,-150.0,0.00014537,2]
[337514717,1725729035920,-150.0,0.00014537,2]
[337514718,1725729035931,-150.0,0.00014546,2]
[337514719,1725729035940,-741.46321172,0.00014547,2]
[337514720,1725729035950,-265.34310616,0.00014547,2]
[337514721,1725729035959,-352.10384507,0.00014547,2]
[337514722,1725729035969,-15221.71530684,0.00014552,2]
[337514723,1725729035979,-4045.3257,0.00014553,2]
[337514724,1725729035991,-150.0,0.00014562,2]
[337514725,1725729036000,-741.46321172,0.00014562,2]
[337514726,1725729036009,-265.34310616,0.00014562,2]
[337514727,1725729036019,-352.10384507,0.00014562,2]
[337514728,1725729036029,-741.46321172,0.00014578,2]
[337514729,1725729036038,-265.34310616,0.00014578,2]
[337514730,1725729036047,-352.10384507,0.00014578,2]
[337514731,1725729036058,-150.0,0.00014587,2]
[337514732,1725729036069,-331.41695225,0.00014593,2]
[337514733,1725729036084,-410.04625947,0.00014593,2]
[337514734,1725729036095,-265.34310616,0.00014593,2]
[337514735,1725729036104,-352.10384507,0.00014593,2]
[337514736,1725729036113,-2576.04369831,0.00014594,2]
[337514737,1725729036124,-2497.50370162,0.00014594,2]
[337514738,1725729036135,-6000.0,0.00014594,2]
[337514739,1725729036151,-3910.46307198,0.00014594,2]
[337514740,1725729036163,-289.8028466,0.00014594,2]
[337514741,1725729036175,-39171.69628149,0.00014594,2]
[337514742,1725729036184,-892.1665,0.00014594,2]
[337514743,1725729036194,-300.0,0.000146,5]
[337514744,1725729036203,-15221.71530684,0.00014602,2]
[337514745,1725729036212,-154.0,0.00014606,2]
[337514746,1725729036222,-741.46321172,0.00014608,2]
[337514747,1725729036231,-265.34310616,0.00014608,2]
[337514748,1725729036242,-352.10384507,0.00014608,2]
[337514749,1725729036250,-150.0,0.00014612,2]
[337514750,1725729036260,-150.0,0.00014612,2]
[337514751,1725729036269,-150.0,0.00014612,2]
[337514752,1725729036279,-741.46321172,0.00014623,2]
[337514753,1725729036296,-265.34310616,0.00014623,2]
[337514754,1725729036305,-352.10384507,0.00014623,2]
[337514755,1725729036314,-420.78347024,0.00014627,2]
[337514756,1725729036323,-150.0,0.00014634,2]
[337514757,1725729036333,-150.0,0.00014637,2]
[337514758,1725729036343,-741.46321172,0.00014638,2]
[337514759,1725729036352,-265.34310616,0.00014638,2]
[337514760,1725729036362,-352.10384507,0.00014638,2]
[337514761,1725729036371,-4111.5447,0.0001464,2]
[337514762,1725729036381,-12411.2315,0.0001464,2]
[337514763,1725729036391,-6346.26125634,0.00014642,3]
[337514764,1725729036400,-15221.71530684,0.00014652,2]
[337514765,1725729036409,-4494.07472503,0.00014653,2]
[337514766,1725729036419,-6346.26125634,0.00014653,3]
[337514767,1725729036428,-741.46321172,0.00014653,2]
[337514768,1725729036437,-265.34310616,0.00014653,2]
[337514769,1725729036446,-352.10384507,0.00014653,2]
[337514770,1725729036456,-150.0,0.00014662,2]
[337514771,1725729036465,-1930.1682,0.00014663,2]
[337514772,1725729036475,-741.46321172,0.00014668,2]
[337514773,1725729036484,-265.34310616,0.00014668,2]
[337514774,1725729036494,-352.10384507,0.00014668,2]
[337514775,1725729036504,-741.46321172,0.00014684,2]
[337514776,1725729036513,-265.34310616,0.00014684,2]
[337514777,1725729036523,-352.10384507,0.00014684,2]
[337514778,1725729036532,-25385.0450254,0.00014684,3]
[337514779,1725729036541,-150.0,0.00014687,2]
[337514780,1725729036550,-150.0,0.00014687,2]
[337514781,1725729036559,-150.0,0.00014687,2]
[337514782,1725729036569,-150.0,0.00014687,2]
[337514783,1725729036578,-6346.26125634,0.00014691,3]
[337514784,1725729036587,-422.5485,0.00014694,2]
[337514785,1725729036596,-998.3312,0.00014694,2]
[337514786,1725729036605,-1000.0,0.00014694,2]
[337514787,1725729036615,-187.1327,0.00014694,2]
[337514788,1725729036624,-281.1116,0.00014694,2]
[337514789,1725729036633,-1143.0515,0.00014694,2]
[337514790,1725729036642,-38952.145,0.00014694,2]
[337514791,1725729036651,-506.6185,0.00014694,2]
[337514792,1725729036660,-500.0,0.00014694,2]
[337514793,1725729036669,-1468.5995,0.00014694,2]
[337514794,1725729036678,-7500.0,0.00014694,2]
[337514795,1725729036687,-741.46321172,0.00014699,2]
[337514796,1725729036696,-265.34310616,0.00014699,2]
[337514797,1725729036706,-352.10384507,0.00014699,2]
[337514798,1725729036715,-150.0,0.000147,2]
[337514799,1725729036723,-150.0,0.000147,2]
[337514800,1725729036732,-300.0,0.000147,5]
[337514801,1725729036743,-15221.71530684,0.00014701,2]
[337514802,1725729036752,-150.0,0.00014712,2]
[337514803,1725729036761,-741.46321172,0.00014714,2]
[337514804,1725729036770,-265.34310616,0.00014714,2]
[337514805,1725729036779,-352.10384507,0.00014714,2]
[337514806,1725729036788,-6346.26125634,0.00014719,3]
[337514807,1725729036797,-150.0,0.00014722,2]
[337514808,1725729036807,-741.46321172,0.00014729,2]
[337514809,1725729036815,-265.34310616,0.00014729,2]
[337514810,1725729036824,-352.10384507,0.00014729,2]
[337514811,1725729036834,-150.0,0.00014737,2]
[337514812,1725729036843,-150.0,0.00014737,2]
[337514813,1725729036853,-6346.26125634,0.00014741,3]
[337514814,1725729036862,-741.46321172,0.00014744,2]
[337514815,1725729036871,-265.34310616,0.00014744,2]
[337514816,1725729036880,-352.10384507,0.00014744,2]
[337514817,1725729036889,-15221.71530684,0.00014751,2]
[337514818,1725729036899,-741.46321172,0.00014759,2]
[337514819,1725729036908,-265.34310616,0.00014759,2]
[337514820,1725729036917,-352.10384507,0.00014759,2]
[337514821,1725729036927,-150.0,0.00014762,2]
[337514822,1725729036936,-163.45,0.00014774,2]